fUSD/lending_fUSD_20250212
["ID","MTS","AMOUNT","RATE_DAILY","PERIOD"]
[352870734,1739382715047,-500.0,0.00017397,2]
[352870735,1739382715058,-500.0,0.00017397,2]
[352870736,1739382715068,-500.0,0.00017397,2]
[352870737,1739382715078,-500.0,0.00017397,2]
[352870738,1739382715088,-507.29574718,0.00017397,2]
[352870739,1739382715099,-505.06196229,0.00017397,2]
[352870740,1739382715109,-500.0,0.00017397,2]
[352870741,1739382715119,-500.0,0.00017397,2]
[352870742,1739382715130,-500.0,0.00017397,2]
[352870743,1739382715139,-500.0,0.00017397,2]
[352870744,1739382715151,-500.0,0.00017397,2]
[352870745,1739382715161,-500.0,0.00017397,2]
[352870746,1739382715171,-500.0,0.00017397,2]
[352870747,1739382715180,-500.0,0.00017397,2]
[352870748,1739382715190,-500.0,0.00017397,2]
[352870749,1739382715200,-829.87,0.00017397,2]
[352870750,1739382715209,-1032.55,0.00017397,2]
[352870751,1739382715221,-380.0,0.00017397,2]
[352870752,1739382715231,-813.62,0.00017397,2]
[352870753,1739382715243,-504.0364468,0.00017397,2]
[352870754,1739382715253,-500.0,0.00017397,2]
[352870755,1739382715263,-500.0,0.00017397,2]
[352870756,1739382715272,-794.25,0.00017397,2]
[352870757,1739382715283,-500.0,0.00017397,2]
[352870758,1739382715294,-500.0,0.00017397,2]
[352870759,1739382715304,-271.84889679,0.00017397,2]
[352870760,1739382715313,-500.0,0.00017397,2]
[352870761,1739382715325,-201.42832034,0.00017397,2]
[352870762,1739382715335,-500.0,0.00017397,2]
[352870763,1739382715345,-500.0,0.00017397,2]
[352870764,1739382715354,-500.0,0.00017397,2]
[352870765,1739382715364,-822.32,0.00017397,2]
[352870766,1739382715373,-993.03,0.00017397,2]
[352870767,1739382715384,-548.79,0.00017397,2]
[352870768,1739382715394,-639.8,0.00017397,2]
[352870769,1739382715403,-500.0,0.00017397,2]
[352870770,1739382715413,-500.0,0.00017397,2]
[352870771,1739382715423,-500.0,0.00017397,2]
[352870772,1739382715433,-500.0,0.00017397,2]
[352870773,1739382715443,-500.0,0.00017397,2]
[352870774,1739382715453,-652.3,0.00017397,2]
[352870775,1739382715462,-500.0,0.00017397,2]
[352870776,1739382715473,-516.35,0.00017397,2]
[352870777,1739382715483,-500.0,0.00017397,2]
[352870778,1739382715492,-541.15,0.00017397,2]
[352870779,1739382715503,-500.0,0.00017397,2]
[352870780,1739382715513,-649.38,0.00017397,2]
[352870781,1739382715524,-500.0,0.00017397,2]
[352870782,1739382715533,-500.0,0.00017397,2]
[352870783,1739382715543,-500.0,0.00017397,2]
[352870784,1739382715554,-568.96,0.00017397,2]
[352870785,1739382715563,-500.0,0.00017397,2]
[352870786,1739382715574,-557.36,0.00017397,2]
[352870787,1739382715584,-500.0,0.00017397,2]
[352870788,1739382715594,-500.0,0.00017397,2]
[352870789,1739382715603,-614.87,0.00017397,2]
[352870790,1739382715614,-511.07333054,0.00017397,2]
[352870791,1739382715624,-2905.55,0.00017397,2]
[352870792,1739382715636,-1000.0,0.00017397,2]
[352870793,1739382715646,-520.63,0.00017397,2]
[352870794,1739382715656,-500.0,0.00017397,2]
[352870795,1739382715667,-954.62,0.00017397,2]
[352870796,1739382715677,-500.0,0.00017397,2]
[352870797,1739382715688,-1239.29,0.00017397,2]
[352870798,1739382715698,-500.0,0.00017397,2]
[352870799,1739382715708,-500.0,0.00017397,2]
[352870800,1739382715718,-533.5,0.00017397,2]
[352870801,1739382715728,-952.94,0.00017397,2]
[352870802,1739382715738,-1268.94,0.00017397,2]
[352870803,1739382715748,-500.0,0.00017397,2]
[352870804,1739382715758,-500.0,0.00017397,2]
[352870805,1739382715768,-500.0,0.00017397,2]
[352870806,1739382715777,-581.63,0.00017397,2]
[352870807,1739382715788,-1124.26,0.00017397,2]
[352870808,1739382715799,-240.9782975,0.00017397,2]
[352870809,1739382715809,-500.0,0.00017397,2]
[352870810,1739382715819,-500.0,0.00017397,2]
[352870811,1739382715829,-500.0,0.00017397,2]
[352870812,1739382715839,-716.09,0.00017397,2]
[352870813,1739382715849,-500.0,0.00017397,2]
[352870814,1739382715859,-512.11934402,0.00017397,2]
[352870815,1739382715869,-500.0,0.00017397,2]
[352870816,1739382715879,-500.0,0.00017397,2]
[352870817,1739382715888,-924.49,0.00017397,2]
[352870818,1739382715898,-816.17,0.00017397,2]
[352870819,1739382715908,-500.0,0.00017397,2]
[352870820,1739382715918,-698.6,0.00017397,2]
[352870821,1739382715928,-500.0,0.00017397,2]
[352870822,1739382715939,-500.0,0.00017397,2]
[352870823,1739382715949,-500.0,0.00017397,2]
[352870824,1739382715960,-932.44,0.00017397,2]
[352870825,1739382715970,-500.0,0.00017397,2]
[352870826,1739382715981,-436.74696254,0.00017397,2]
[352870827,1739382715991,-967.11,0.00017397,2]
[352870828,1739382716001,-500.0,0.00017397,2]
[352870829,1739382716011,-500.0,0.00017397,2]
[352870830,1739382716021,-1385.13,0.00017397,2]
[352870831,1739382716031,-708.67,0.00017397,2]
[352870832,1739382716040,-500.0,0.00017397,2]
[352870833,1739382716051,-500.0,0.00017397,2]
[352870834,1739382716060,-500.0,0.00017397,2]
[352870835,1739382716072,-500.0,0.00017397,2]
[352870836,1739382716081,-500.0,0.00017397,2]
[352870837,1739382716091,-545.84,0.00017397,2]
[352870838,1739382716100,-753.78,0.00017397,2]
[352870839,1739382716110,-1105.97,0.00017397,2]
[352870840,1739382716120,-500.0,0.00017397,2]
[352870841,1739382716129,-500.0,0.00017397,2]
[352870842,1739382716140,-500.0,0.00017397,2]
[352870843,1739382716150,-1050.74,0.00017397,2]
[352870844,1739382716160,-500.0,0.00017397,2]
[352870845,1739382716170,-500.0,0.00017397,2]
[352870846,1739382716180,-500.0,0.00017397,2]
[352870847,1739382716190,-500.0,0.00017397,2]
[352870848,1739382716200,-1743.66,0.00017397,2]
[352870849,1739382716210,-500.0,0.00017397,2]
[352870850,1739382716220,-1570.2,0.00017397,2]
[352870851,1739382716230,-505.19345099,0.00017397,2]
[352870852,1739382716241,-500.0,0.00017397,2]
[352870853,1739382716251,-500.0,0.00017397,2]
[352870854,1739382716261,-500.0,0.00017397,2]
[352870855,1739382716270,-972.24,0.00017397,2]
[352870856,1739382716281,-500.0,0.00017397,2]
[352870857,1739382716291,-500.0,0.00017397,2]
[352870858,1739382716300,-791.73,0.00017397,2]
[352870859,1739382716310,-500.0,0.00017397,2]
[352870860,1739382716321,-313.43523478,0.00017397,2]
[352870861,1739382716331,-549.38,0.00017397,2]
[352870862,1739382716341,-500.0,0.00017397,2]
[352870863,1739382716350,-578.94,0.00017397,2]
[352870864,1739382716360,-544.03,0.00017397,2]
[352870865,1739382716371,-500.0,0.00017397,2]
[352870866,1739382716381,-500.0,0.00017397,2]
[352870867,1739382716391,-500.0,0.00017397,2]
[352870868,1739382716400,-506.1148609,0.00017397,2]
[352870869,1739382716410,-1069.58,0.00017397,2]
[352870870,1739382716421,-695.43,0.00017397,2]
[352870871,1739382716431,-500.0,0.00017397,2]
[352870872,1739382716440,-500.0,0.00017397,2]
[352870873,1739382716450,-500.0,0.00017397,2]
[352870874,1739382716460,-512.74088686,0.00017397,2]
[352870875,1739382716469,-533.36,0.00017397,2]
[352870876,1739382716479,-500.0,0.00017397,2]
[352870877,1739382716489,-500.0,0.00017397,2]
[352870878,1739382716498,-515.84147748,0.00017397,2]
[352870879,1739382716507,-500.0,0.00017397,2]
[352870880,1739382716517,-1527.94,0.00017397,2]
[352870881,1739382716526,-500.0,0.00017397,2]
[352870882,1739382716536,-784.42,0.00017397,2]
[352870883,1739382716545,-500.0,0.00017397,2]
[352870884,1739382716555,-592.92,0.00017397,2]
[352870885,1739382716564,-500.0,0.00017397,2]
[352870886,1739382716575,-500.0,0.00017397,2]
[352870887,1739382716585,-815.04,0.00017397,2]
[352870888,1739382716594,-704.34,0.00017397,2]
[352870889,1739382716604,-500.0,0.00017397,2]
[352870890,1739382716614,-639.79,0.00017397,2]
[352870891,1739382716624,-500.0,0.00017397,2]
[352870892,1739382716634,-500.0,0.00017397,2]
[352870893,1739382716643,-500.0,0.00017397,2]
[352870894,1739382716653,-500.0,0.00017397,2]
[352870895,1739382716663,-274.58777174,0.00017397,2]
[352870896,1739382716672,-500.0,0.00017397,2]
[352870897,1739382716682,-500.0,0.00017397,2]
[352870898,1739382716691,-500.0,0.00017397,2]
[352870899,1739382716700,-500.0,0.00017397,2]
[352870900,1739382716710,-363.31414877,0.00017397,2]
[352870901,1739382716720,-500.0,0.00017397,2]
[352870902,1739382716730,-500.0,0.00017397,2]
[352870903,1739382716739,-500.0,0.00017397,2]
[352870904,1739382716749,-500.0,0.00017397,2]
[352870905,1739382716758,-500.0,0.00017397,2]
[352870906,1739382716767,-500.0,0.00017397,2]
[352870907,1739382716776,-500.0,0.00017397,2]
[352870908,1739382716786,-500.0,0.00017397,2]
[352870909,1739382716795,-500.0,0.00017397,2]
[352870910,1739382716806,-941.64,0.00017397,2]
[352870911,1739382716815,-500.0,0.00017397,2]
[352870912,1739382716826,-656.91,0.00017397,2]
[352870913,1739382716836,-500.0,0.00017397,2]
[352870914,1739382716845,-761.6,0.00017397,2]
[352870915,1739382716856,-500.0,0.00017397,2]
[352870916,1739382716866,-1473.21,0.00017397,2]
[352870917,1739382716876,-500.0,0.00017397,2]
[352870918,1739382716886,-2165.26,0.00017397,2]
[352870919,1739382716896,-610.51,0.00017397,2]
[352870920,1739382716906,-500.0,0.00017397,2]
[352870921,1739382716916,-500.0,0.00017397,2]
[352870922,1739382716926,-500.0,0.00017397,2]
[352870923,1739382716936,-649.02,0.00017397,2]
[352870924,1739382716946,-500.0,0.00017397,2]
[352870925,1739382716955,-500.0,0.00017397,2]
[352870926,1739382716965,-863.97,0.000174,7]
[352870927,1739382716975,-195.08254001,0.00017452,2]
[352870928,1739382716985,-422.89925846,0.00017465,2]
[352870929,1739382716994,-260.67262,0.00017488,7]
[352870930,1739382717005,-194.56864723,0.00017491,4]
[352870931,1739382717015,-500.0,0.00017492,2]
[352870932,1739382717026,-3773.08,0.000175,2]
[352870933,1739382717036,-499.67303495,0.0001752,2]
[352870934,1739382717048,-1877.939814,0.00017534,2]
[352870935,1739382717057,-502.948066,0.00017534,2]
[352870936,1739382717068,-500.0,0.00017534,2]
[352870937,1739382717078,-500.0,0.00017534,2]
[352870938,1739382717087,-500.0,0.00017534,2]
[352870939,1739382717097,-500.0,0.00017534,2]
[352870940,1739382717107,-500.0,0.00017534,2]
[352870941,1739382717116,-500.0,0.00017534,2]
[352870942,1739382717127,-500.0,0.00017534,2]
[352870943,1739382717137,-500.0,0.00017534,2]
[352870944,1739382717160,-517.96249561,0.00017534,2]
[352870945,1739382717172,-500.0,0.00017534,2]
[352870946,1739382717183,-191.25841974,0.00017534,2]
[352870947,1739382717195,-500.0,0.00017534,2]
[352870948,1739382717206,-222.64003229,0.00017534,2]
[352870949,1739382717216,-500.0,0.00017534,2]
[352870950,1739382717227,-500.0,0.00017534,2]
[352870951,1739382717239,-500.0,0.00017534,2]
[352870952,1739382717252,-178.07750549,0.00017534,2]
[352870953,1739382717263,-500.0,0.00017534,2]
[352870954,1739382717274,-500.0,0.00017534,2]
[352870955,1739382717285,-517.23876004,0.00017534,2]
[352870956,1739382717295,-500.0,0.00017534,2]
[352870957,1739382717306,-500.0,0.00017534,2]
[352870958,1739382717316,-1287.0,0.00017534,2]
[352870959,1739382717327,-500.0,0.00017534,2]
[352870960,1739382717337,-500.0,0.00017534,2]
[352870961,1739382717351,-500.0,0.00017534,2]
[352870962,1739382717361,-500.0,0.00017534,2]
[352870963,1739382717372,-500.0,0.00017534,2]
[352870964,1739382717382,-500.0,0.00017534,2]
[352870965,1739382717393,-483.91156205,0.00017534,2]
[352870966,1739382717403,-500.0,0.00017534,2]
[352870967,1739382717413,-500.0,0.00017534,2]
[352870968,1739382717424,-500.0,0.00017534,2]
[352870969,1739382717435,-500.0,0.00017534,2]
[352870970,1739382717445,-500.0,0.00017534,2]
[352870971,1739382717455,-500.0,0.00017534,2]
[352870972,1739382717466,-500.0,0.00017534,2]
[352870973,1739382717476,-500.0,0.00017534,2]
[352870974,1739382717487,-500.0,0.00017534,2]
[352870975,1739382717497,-500.0,0.00017534,2]
[352870976,1739382717508,-500.0,0.00017534,2]
[352870977,1739382717518,-551.35636716,0.00017534,2]
[352870978,1739382717528,-500.0,0.00017534,2]
[352870979,1739382717539,-500.0,0.00017534,2]
[352870980,1739382717549,-500.0,0.00017534,2]
[352870981,1739382717560,-500.0,0.00017534,2]
[352870982,1739382717571,-500.0,0.00017534,2]
[352870983,1739382717581,-500.0,0.00017534,2]
[352870984,1739382717592,-621.99,0.00017534,2]
[352870985,1739382717603,-500.0,0.00017534,2]
[352870986,1739382717613,-510.88040312,0.00017534,2]
[352870987,1739382717623,-500.0,0.00017534,2]
[352870988,1739382717633,-500.0,0.00017534,2]
[352870989,1739382717643,-500.0,0.00017534,2]
[352870990,1739382717653,-500.0,0.00017534,2]
[352870991,1739382717670,-500.0,0.00017534,2]
[352870992,1739382717681,-591.94,0.00017534,2]
[352870993,1739382717690,-500.0,0.00017534,2]
[352870994,1739382717701,-500.0,0.00017534,2]
[352870995,1739382717712,-500.0,0.00017534,2]
[352870996,1739382717723,-500.0,0.00017534,2]
[352870997,1739382717734,-505.68118884,0.00017534,2]
[352870998,1739382717744,-219.28250991,0.00017534,2]
[352870999,1739382717754,-500.0,0.00017534,2]
[352871000,1739382717765,-500.0,0.00017534,2]
[352871001,1739382717775,-735.65,0.00017534,2]
[352871002,1739382717786,-500.0,0.00017534,2]
[352871003,1739382717796,-500.0,0.00017534,2]
[352871004,1739382717807,-500.0,0.00017534,2]
[352871005,1739382717818,-500.0,0.00017534,2]
[352871006,1739382717828,-522.67637951,0.00017534,2]
[352871007,1739382717839,-549.65,0.00017534,2]
[352871008,1739382717849,-500.0,0.00017534,2]
[352871009,1739382717859,-500.0,0.00017534,2]
[352871010,1739382717870,-500.0,0.00017534,2]
[352871011,1739382717880,-500.0,0.00017534,2]
[352871012,1739382717890,-500.0,0.00017534,2]
[352871013,1739382717900,-500.0,0.00017534,2]
[352871014,1739382717910,-500.0,0.00017534,2]
[352871015,1739382717920,-500.0,0.00017534,2]
[352871016,1739382717930,-500.0,0.00017534,2]
[352871017,1739382717940,-577.02,0.00017534,2]
[352871018,1739382717950,-425.2,0.00017534,2]
[352871019,1739382717960,-500.0,0.00017534,2]
[352871020,1739382717971,-500.0,0.00017534,2]
[352871021,1739382717980,-630.33469811,0.00017534,2]
[352871022,1739382717990,-500.0,0.00017534,2]
[352871023,1739382718000,-500.0,0.00017534,2]
[352871024,1739382718010,-500.0,0.00017534,2]
[352871025,1739382718020,-500.0,0.00017534,2]
[352871026,1739382718031,-500.0,0.00017534,2]
[352871027,1739382718041,-500.0,0.00017534,2]
[352871028,1739382718051,-500.0,0.00017534,2]
[352871029,1739382718061,-355.37510794,0.00017534,2]
[352871030,1739382718072,-500.0,0.00017534,2]
[352871031,1739382718082,-500.0,0.00017534,2]
[352871032,1739382718409,-562.91602446,0.00017534,2]
[352871033,1739382718420,-500.0,0.00017534,2]
[352871034,1739382718430,-500.0,0.00017534,2]
[352871035,1739382718441,-500.0,0.00017534,2]
[352871036,1739382718451,-500.0,0.00017534,2]
[352871037,1739382718462,-500.0,0.00017534,2]
[352871038,1739382718472,-500.0,0.00017534,2]
[352871039,1739382718482,-637.77592432,0.00017534,2]
[352871040,1739382718492,-500.0,0.00017534,2]
[352871041,1739382718502,-500.0,0.00017534,2]
[352871042,1739382718513,-500.0,0.00017534,2]
[352871043,1739382718523,-278.16909695,0.00017534,2]
[352871044,1739382718533,-500.0,0.00017534,2]
[352871045,1739382718543,-500.0,0.00017534,2]
[352871046,1739382718554,-500.0,0.00017534,2]
[352871047,1739382718565,-500.0,0.00017534,2]
[352871048,1739382718575,-500.0,0.00017534,2]
[352871049,1739382718585,-500.0,0.00017534,2]
[352871050,1739382718601,-500.0,0.00017534,2]
[352871051,1739382718611,-500.0,0.00017534,2]
[352871052,1739382718621,-500.0,0.00017534,2]
[352871053,1739382718631,-2215.96,0.00017534,2]
[352871054,1739382718643,-500.0,0.00017534,2]
[352871055,1739382718654,-632.39568786,0.00017534,2]
[352871056,1739382718665,-500.0,0.00017534,2]
[352871057,1739382718676,-500.0,0.00017534,2]
[352871058,1739382718687,-758.04,0.00017534,2]
[352871059,1739382718697,-500.0,0.00017534,2]
[352871060,1739382718708,-547.12923672,0.00017534,2]
[352871061,1739382718719,-500.0,0.00017534,2]
[352871062,1739382718730,-500.0,0.00017534,2]
[352871063,1739382718740,-500.0,0.00017534,2]
[352871064,1739382718751,-791.51,0.00017534,2]
[352871065,1739382718762,-500.0,0.00017534,2]
[352871066,1739382718772,-500.0,0.00017534,2]
[352871067,1739382718782,-500.0,0.00017534,2]
[352871068,1739382718792,-500.0,0.00017534,2]
[352871069,1739382718802,-570.77,0.00017534,2]
[352871070,1739382718812,-500.0,0.00017534,2]
[352871071,1739382718821,-500.0,0.00017534,2]
[352871072,1739382718831,-500.0,0.00017534,2]
[352871073,1739382718842,-500.0,0.00017534,2]
[352871074,1739382718852,-500.0,0.00017534,2]
[352871075,1739382718863,-500.0,0.00017534,2]
[352871076,1739382718875,-500.0,0.00017534,2]
[352871077,1739382718886,-500.0,0.00017534,2]
[352871078,1739382718897,-500.0,0.00017534,2]
[352871079,1739382718907,-237.00892379,0.00017534,2]
[352871080,1739382718918,-500.0,0.00017534,2]
[352871081,1739382718927,-500.0,0.00017534,2]
[352871082,1739382718938,-500.0,0.00017534,2]
[352871083,1739382718948,-500.0,0.00017534,2]
[352871084,1739382718958,-500.0,0.00017534,2]
[352871085,1739382718970,-500.0,0.00017534,2]
[352871086,1739382718980,-500.0,0.00017534,2]
[352871087,1739382718991,-691.1,0.00017534,2]
[352871088,1739382719001,-500.0,0.00017534,2]
[352871089,1739382719011,-500.0,0.00017534,2]
[352871090,1739382719020,-500.0,0.00017534,2]
[352871091,1739382719031,-500.41,0.00017534,2]
[352871092,1739382719042,-629.82650175,0.00017534,2]
[352871093,1739382719051,-500.0,0.00017534,2]
[352871094,1739382719061,-500.0,0.00017534,2]
[352871095,1739382719071,-616.94,0.00017534,2]
[352871096,1739382719082,-500.0,0.00017534,2]
[352871097,1739382719092,-500.0,0.00017534,2]
[352871098,1739382719113,-500.0,0.00017534,2]
[352871099,1739382719126,-576.7,0.00017534,2]
[352871100,1739382719137,-739.81,0.00017534,2]
[352871101,1739382719147,-500.0,0.00017534,2]
[352871102,1739382719158,-500.0,0.00017534,2]
[352871103,1739382719171,-500.0,0.00017534,2]
[352871104,1739382719183,-544.11175973,0.00017534,2]
[352871105,1739382719193,-500.0,0.00017534,2]
[352871106,1739382719204,-500.0,0.00017534,2]
[352871107,1739382719215,-500.0,0.00017534,2]
[352871108,1739382719226,-500.0,0.00017534,2]
[352871109,1739382719236,-500.0,0.00017534,2]
[352871110,1739382719250,-500.0,0.00017534,2]
[352871111,1739382719261,-500.0,0.00017534,2]
[352871112,1739382719272,-500.0,0.00017534,2]
[352871113,1739382719283,-500.0,0.00017534,2]
[352871114,1739382719294,-508.91262347,0.00017534,2]
[352871115,1739382719304,-500.0,0.00017534,2]
[352871116,1739382719315,-500.0,0.00017534,2]
[352871117,1739382719329,-500.0,0.00017534,2]
[352871118,1739382719340,-500.0,0.00017534,2]
[352871119,1739382719351,-478.24600259,0.00017534,2]
[352871120,1739382719362,-500.0,0.00017534,2]
[352871121,1739382719374,-500.0,0.00017534,2]
[352871122,1739382719385,-500.0,0.00017534,2]
[352871123,1739382719396,-500.0,0.00017534,2]
[352871124,1739382719406,-500.0,0.00017534,2]
[352871125,1739382719417,-500.0,0.00017534,2]
[352871126,1739382719428,-500.0,0.00017534,2]
[352871127,1739382719438,-500.0,0.00017534,2]
[352871128,1739382719449,-500.0,0.00017534,2]
[352871129,1739382719460,-500.0,0.00017534,2]
[352871130,1739382719470,-500.0,0.00017534,2]
[352871131,1739382719481,-500.0,0.00017534,2]
[352871132,1739382719492,-518.71,0.00017534,2]
[352871133,1739382719502,-500.0,0.00017534,2]
[352871134,1739382719513,-500.0,0.00017534,2]
[352871135,1739382719524,-500.0,0.00017534,2]
[352871136,1739382719534,-500.0,0.00017534,2]
[352871137,1739382719545,-500.0,0.00017534,2]
[352871138,1739382719555,-500.0,0.00017534,2]
[352871139,1739382719566,-500.0,0.00017534,2]
[352871140,1739382719578,-500.0,0.00017534,2]
[352871141,1739382719588,-500.0,0.00017534,2]
[352871142,1739382719599,-500.0,0.00017534,2]
[352871143,1739382719609,-500.0,0.00017534,2]
[352871144,1739382719620,-546.94,0.00017534,2]
[352871145,1739382719636,-513.14430052,0.00017534,2]
[352871146,1739382719646,-500.0,0.00017534,2]
[352871147,1739382719656,-613.95,0.00017534,2]
[352871148,1739382719667,-500.0,0.00017534,2]
[352871149,1739382719678,-500.0,0.00017534,2]
[352871150,1739382719689,-622.68,0.00017534,2]
[352871151,1739382719700,-500.0,0.00017534,2]
[352871152,1739382719711,-500.0,0.00017534,2]
[352871153,1739382719722,-500.0,0.00017534,2]
[352871154,1739382719732,-500.0,0.00017534,2]
[352871155,1739382719742,-500.0,0.00017534,2]
[352871156,1739382719753,-500.0,0.00017534,2]
[352871157,1739382719763,-500.0,0.00017534,2]
[352871158,1739382719774,-508.21,0.00017534,2]
[352871159,1739382719785,-424.21,0.00017534,2]
[352871160,1739382719796,-657.14,0.00017534,2]
[352871161,1739382719806,-500.0,0.00017534,2]
[352871162,1739382719817,-500.0,0.00017534,2]
[352871163,1739382719829,-653.17,0.00017534,2]
[352871164,1739382719839,-509.55473289,0.00017534,2]
[352871165,1739382719850,-500.0,0.00017534,2]
[352871166,1739382719861,-500.0,0.00017534,2]
[352871167,1739382719871,-500.0,0.00017534,2]
[352871168,1739382719882,-500.0,0.00017534,2]
[352871169,1739382719892,-1129.37,0.00017534,2]
[352871170,1739382719903,-205.41158462,0.00017534,2]
[352871171,1739382719913,-500.0,0.00017534,2]
[352871172,1739382719923,-566.02,0.00017534,2]
[352871173,1739382719933,-675.41,0.00017534,2]
[352871174,1739382719943,-500.0,0.00017534,2]
[352871175,1739382719954,-500.0,0.00017534,2]
[352871176,1739382719964,-500.0,0.00017534,2]
[352871177,1739382719975,-500.0,0.00017534,2]
[352871178,1739382719984,-500.0,0.00017534,2]
[352871179,1739382719994,-500.0,0.00017534,2]
[352871180,1739382720005,-500.0,0.00017534,2]
[352871181,1739382720016,-807.47,0.00017534,2]
[352871182,1739382720026,-500.0,0.00017534,2]
[352871183,1739382720036,-500.0,0.00017534,2]
[352871184,1739382720046,-511.97825943,0.00017534,2]
[352871185,1739382720055,-501.31,0.00017534,2]
[352871186,1739382720066,-1231.38,0.00017534,2]
[352871187,1739382720077,-500.0,0.00017534,2]
[352871188,1739382720087,-500.0,0.00017534,2]
[352871189,1739382720098,-1199.85,0.00017534,2]
[352871190,1739382720108,-500.0,0.00017534,2]
[352871191,1739382720118,-500.0,0.00017534,2]
[352871192,1739382720128,-500.0,0.00017534,2]
[352871193,1739382720144,-500.0,0.00017534,2]
[352871194,1739382720156,-500.0,0.00017534,2]
[352871195,1739382720167,-500.0,0.00017534,2]
[352871196,1739382720179,-500.0,0.00017534,2]
[352871197,1739382720189,-500.0,0.00017534,2]
[352871198,1739382720201,-500.0,0.00017534,2]
[352871199,1739382720212,-211.77624953,0.00017534,2]
[352871200,1739382720223,-500.0,0.00017534,2]
[352871201,1739382720234,-500.0,0.00017534,2]
[352871202,1739382720245,-500.0,0.00017534,2]
[352871203,1739382720258,-500.0,0.00017534,2]
[352871204,1739382720268,-500.0,0.00017534,2]
[352871205,1739382720279,-829.87,0.00017534,2]
[352871206,1739382720289,-1032.55,0.00017534,2]
[352871207,1739382720299,-813.62,0.00017534,2]
[352871208,1739382720310,-500.0,0.00017534,2]
[352871209,1739382720320,-500.0,0.00017534,2]
[352871210,1739382720332,-794.25,0.00017534,2]
[352871211,1739382720342,-500.0,0.00017534,2]
[352871212,1739382720352,-500.0,0.00017534,2]
[352871213,1739382720362,-500.0,0.00017534,2]
[352871214,1739382720371,-500.0,0.00017534,2]
[352871215,1739382720381,-500.0,0.00017534,2]
[352871216,1739382720391,-500.0,0.00017534,2]
[352871217,1739382720401,-822.32,0.00017534,2]
[352871218,1739382720411,-993.03,0.00017534,2]
[352871219,1739382720422,-548.79,0.00017534,2]
[352871220,1739382720432,-639.8,0.00017534,2]
[352871221,1739382720442,-500.0,0.00017534,2]
[352871222,1739382720452,-500.0,0.00017534,2]
[352871223,1739382720462,-500.0,0.00017534,2]
[352871224,1739382720472,-364.84491028,0.00017534,2]
[352871225,1739382720482,-500.0,0.00017534,2]
[352871226,1739382720492,-652.3,0.00017534,2]
[352871227,1739382720501,-500.0,0.00017534,2]
[352871228,1739382720512,-516.35,0.00017534,2]
[352871229,1739382720523,-500.0,0.00017534,2]
[352871230,1739382720533,-541.15,0.00017534,2]
[352871231,1739382720548,-500.0,0.00017534,2]
[352871232,1739382720558,-649.38,0.00017534,2]
[352871233,1739382720568,-500.0,0.00017534,2]